bitfinex/quotes_ETHUSD_20250720
["timestamp","ask_amount","ask_price","bid_price","bid_amount"]
[1752984516073,0.1368,3653.4,3653.1,4.35]
[1752984517949,2.90819447,3653.4,3653.1,0.001]
[1752984518152,0.7838,3653.2,3653.1,0.001]
[1752984518778,1.2399,3653.2,3653.1,0.001]
[1752984519562,1.27411657,3653.2,3653.1,0.001]
[1752984519877,4.01144274,3653.2,3653.1,0.001]
[1752984521148,4.56144274,3653.2,3653.1,0.001]
[1752984521463,5.75478691,3653.2,3653.1,0.001]
[1752984521866,5.74718691,3653.2,3653.1,0.001]
[1752984522086,8.74718691,3653.2,3653.1,0.001]
[1752984522260,8.71297034,3653.2,3653.1,0.001]
[1752984524273,13.04897034,3653.2,3653.1,0.001]
[1752984527586,3.28785078,3652.5,3652.4,0.001]
[1752984527890,11.46767391,3652.5,3652.4,0.001]
[1752984528057,19.78955077,3652.5,3652.4,0.001]
[1752984529182,15.45955077,3652.5,3652.4,0.001]
[1752984529384,19.33345077,3652.5,3652.4,0.001]
[1752984529584,17.26193224,3652.5,3652.4,0.001]
[1752984530093,21.60153224,3652.5,3652.4,0.001]
[1752984537286,6.42472574,3652.4,3652.3,1e-08]
[1752984537600,15.60952573,3652.4,3652.3,1e-08]
[1752984537796,17.09368935,3652.4,3652.3,1e-08]
[1752984539102,56.54568935,3652.4,3652.3,1e-08]
[1752984539413,2.73922144,3650.7,3650.3,0.4502]
[1752984539620,2.73922144,3650.7,3650.2,0.8201]
[1752984539621,4.323,3650.6,3650.2,0.8201]
[1752984539767,0.55,3651.2,3650.5,2.73928613]
[1752984539968,4.323,3651.1,3650.6,3.18947573]
[1752984540228,0.1368,3651.1,3651.0,2.73897562]
[1752984540386,2.7381331,3652.2,3651.5,2.73855713]
[1752984540744,4.35722782,3652.0,3651.2,0.4502]
[1752984540871,0.1368,3651.3,3651.2,0.4502]
[1752984541070,0.1368,3651.3,3651.0,0.8088]
[1752984541306,2.73813241,3652.2,3651.4,3.54746997]
[1752984541473,4.34,3652.1,3651.5,0.4502]
[1752984542211,8.44659959,3652.1,3651.5,0.4502]
[1752984542374,7.07816865,3652.1,3651.5,0.4502]
[1752984542802,2.73816865,3652.1,3651.5,0.4502]
[1752984542973,4.341,3652.0,3651.5,3.18879362]
[1752984543388,4.341,3652.0,3651.6,0.4502]
[1752984543597,4.341,3652.0,3651.7,2.73839454]
[1752984543820,6.572,3652.4,3651.8,1.259]
[1752984543993,7.07601584,3652.3,3651.8,1.259]
[1752984544396,2.73809689,3652.2,3651.8,1.259]
[1752984544597,4.37322688,3652.1,3651.8,1.259]
[1752984544800,4.37322688,3652.1,3651.5,2.73959034]
[1752984544801,2.73830017,3652.0,3651.5,0.8098]
[1752984545022,4.339,3651.9,3651.5,0.8098]
[1752984545191,4.339,3651.9,3651.6,0.4502]
[1752984545392,7.07730175,3651.9,3651.7,0.4502]
[1752984545631,2.73837559,3651.8,3651.7,0.4502]
[1752984545850,7.0773205,3651.9,3651.5,0.8098]
[1752984546154,7.0773205,3651.9,3651.5,0.001]
[1752984546155,2.73852557,3651.6,3651.5,0.001]
[1752984546357,7.10975713,3651.6,3651.5,0.001]
[1752984546508,7.62552557,3651.6,3651.5,0.001]
[1752984546712,8.08922557,3651.6,3651.5,0.001]
[1752984546913,9.35135041,3651.6,3651.5,0.001]
[1752984548052,8.88765041,3651.6,3651.5,0.001]
[1752984548256,3.8121,3652.3,3651.5,0.4512]
[1752984548425,4.336,3652.2,3651.5,0.4512]
[1752984548756,3.28852557,3651.6,3651.5,0.001]
[1752984548911,7.62452557,3651.6,3651.5,0.001]
[1752984549113,4.336,3651.6,3651.5,0.001]
[1752984549314,7.07452557,3651.6,3651.5,0.001]
[1752984550309,7.62452557,3651.6,3651.5,0.001]
[1752984550812,7.07452557,3651.6,3651.5,0.4512]
[1752984551549,4.337,3651.6,3651.5,0.4512]
[1752984552128,4.4718,3651.6,3651.5,1.2074]
[1752984553130,0.1368,3651.6,3651.5,3.94600057]
[1752984553356,4.335,3651.6,3651.5,1.2074]
[1752984554152,4.4718,3651.6,3651.5,0.001]
[1752984554950,5.23047352,3651.6,3651.5,0.001]
[1752984555150,7.93476753,3651.6,3651.5,0.001]
[1752984557246,7.21032557,3651.6,3651.5,0.001]
[1752984561055,4.4718,3651.6,3651.5,0.001]
[1752984561268,0.1368,3651.6,3651.5,0.001]
[1752984561584,4.4608,3651.6,3651.5,0.431]
[1752984562349,4.4608,3651.6,3651.5,0.001]
[1752984562554,7.64882863,3651.6,3651.5,0.001]
[1752984564444,8.64142863,3651.6,3651.5,0.001]
[1752984564652,8.19882863,3651.6,3651.5,0.001]
[1752984564852,3.32482863,3651.6,3651.5,0.001]
[1752984565039,7.19932557,3651.6,3651.5,0.001]
[1752984565682,7.74932557,3651.6,3651.5,0.001]
[1752984565880,8.94472557,3651.6,3651.5,0.001]
[1752984566246,11.94472557,3651.6,3651.5,0.001]
[1752984566779,19.84472555,3651.6,3651.5,1e-08]
[1752984566978,22.10303963,3651.6,3651.5,1e-08]
[1752984569178,22.10403963,3651.6,3651.5,1e-08]
[1752984570800,2.73990259,3649.8,3649.4,0.7877]
[1752984570951,4.325,3649.7,3649.4,0.7877]
[1752984571152,2.77433511,3649.6,3649.4,1.2177]
[1752984571353,4.325,3649.5,3649.2,0.43]
[1752984571655,7.06517644,3649.5,3649.2,0.43]
[1752984572204,2.73996202,3649.7,3649.0,2.74047589]
[1752984572417,4.325,3649.6,3648.6,0.7877]
[1752984572726,2.74048139,3649.0,3648.6,0.7877]
[1752984572864,4.875,3648.9,3648.2,2.74101671]
[1752984573068,4.325,3648.8,3648.6,0.43]
[1752984573281,0.03425877,3648.7,3647.8,1.25918949]
[1752984573512,4.325,3648.6,3648.1,0.43]
[1752984573666,4.325,3648.6,3647.8,1.25918949]
[1752984573870,5.1538,3648.6,3648.0,2.74122736]
[1752984574114,2.74098542,3648.4,3647.8,0.47148949]
[1752984574314,7.89458507,3648.6,3647.8,0.47148949]
[1752984574315,4.325,3648.3,3647.8,0.47148949]
[1752984574626,4.08496132,3648.6,3647.9,0.43]
[1752984574627,4.325,3648.2,3647.9,0.43]
[1752984574797,4.325,3648.2,3647.8,0.47148949]
[1752984575519,7.06608171,3648.2,3647.9,0.43]
[1752984575683,1.34418,3648.6,3647.8,0.47148949]
[1752984575866,2.74114417,3648.2,3647.9,0.43]
[1752984576071,7.06615323,3648.1,3647.8,0.47148949]
[1752984576272,0.55,3647.9,3646.9,0.43]
[1752984576496,0.8288,3648.0,3647.0,0.7877]
[1752984576695,3.18360847,3648.3,3647.0,0.7877]
[1752984576696,4.332,3647.8,3647.1,0.43]
[1752984576897,3.57032867,3647.6,3645.8,4.71215446]
[1752984577105,2.74177648,3647.3,3646.6,0.7877]
[1752984577266,2.74190613,3647.1,3646.6,0.7877]
[1752984577465,2.74205489,3646.9,3646.6,0.7877]
[1752984577678,2.74213797,3646.8,3646.2,0.7877]
[1752984577964,4.335,3646.9,3646.4,2.74236296]
[1752984578168,0.4426,3647.4,3646.5,0.43]
[1752984578169,4.337,3647.0,3646.5,0.43]
[1752984578403,4.337,3647.0,3646.6,0.43]
[1752984578609,4.337,3647.0,3646.3,2.74244134]
[1752984578771,3.57033192,3647.6,3646.8,2.74207104]
[1752984578973,3.57033192,3647.6,3646.9,0.43]
[1752984578974,4.887,3647.5,3646.9,0.43]
[1752984579168,7.62862377,3647.5,3647.0,0.7877]
[1752984579382,7.62862377,3647.5,3647.1,0.43]
[1752984579804,4.887,3647.5,3647.1,0.43]
[1752984580179,4.887,3647.5,3647.0,0.7877]
[1752984580180,2.74173957,3647.4,3647.0,0.7877]
[1752984580381,2.74173957,3647.4,3646.4,2.74242464]
[1752984580382,0.55,3647.3,3646.6,0.7553]
[1752984580691,0.55,3647.1,3646.6,0.7553]
[1752984580917,0.55,3647.1,3646.3,1.1853]
[1752984581079,0.1368,3646.4,3646.3,0.7553]
[1752984581279,0.1368,3646.4,3646.3,1.1853]
[1752984581890,0.1368,3646.4,3646.3,0.7553]
[1752984582096,0.1368,3646.4,3646.3,1.1853]
[1752984582313,0.1368,3646.4,3646.0,0.7553]
[1752984582487,0.55,3646.7,3646.3,0.43]
[1752984582685,4.336,3646.8,3646.4,0.43]
[1752984582896,0.1368,3646.5,3646.4,3.17237046]
[1752984583090,0.1368,3646.7,3646.4,0.43]
[1752984583283,0.1368,3646.7,3646.5,0.43]
[1752984583682,2.87903538,3646.7,3646.0,3.92797278]
[1752984583868,0.1368,3646.3,3646.2,2.74257267]
[1752984584210,4.335,3646.9,3646.4,2.74240737]
[1752984584510,0.817,3647.4,3646.5,3.17235568]
[1752984584511,0.1368,3646.6,3646.5,3.17235568]
[1752984584713,0.1368,3646.6,3646.5,3.92765568]
[1752984585212,0.1368,3646.9,3646.5,3.92765497]
[1752984585372,0.1368,3646.9,3646.6,0.43]
[1752984585575,0.1368,3646.9,3646.7,3.17218509]
[1752984585778,0.1368,3646.9,3646.8,0.43]
[1752984586204,0.1368,3646.9,3646.8,3.17213008]
[1752984586886,4.335,3647.4,3646.9,2.74197989]
[1752984587088,0.1368,3647.1,3646.6,0.43]
[1752984587308,0.1368,3646.9,3646.7,3.17216379]
[1752984587613,0.1368,3646.9,3646.8,3.17213008]
[1752984587794,2.74180772,3647.3,3646.6,0.43]
[1752984587994,0.1368,3646.7,3646.6,0.43]
[1752984588194,0.1368,3646.7,3646.6,3.17228048]
[1752984588406,4.335,3647.4,3646.6,0.431]
[1752984588595,0.1368,3646.9,3646.7,2.74219605]
[1752984588796,0.1368,3646.9,3646.8,2.74213008]
[1752984589104,0.1368,3646.9,3646.8,3.17213008]
[1752984589538,0.1368,3646.9,3646.8,0.43]
[1752984590036,0.1368,3646.9,3646.8,3.17213008]
[1752984590236,0.55,3648.1,3647.2,2.74175958]
[1752984590436,0.1368,3646.8,3646.6,0.001]
[1752984590808,2.74192719,3647.1,3646.6,0.001]
[1752984591014,0.03427474,3647.0,3646.6,0.001]
[1752984591211,0.55,3646.9,3646.6,0.001]
[1752984591426,2.74220528,3646.7,3646.6,0.001]
[1752984591822,0.55,3646.9,3646.6,0.001]
[1752984591823,2.74215606,3646.8,3646.6,0.001]
[1752984593137,0.4276,3647.3,3646.6,0.001]
[1752984593465,0.55,3647.0,3646.6,0.001]
[1752984593644,2.74218317,3646.8,3646.6,0.001]
[1752984593843,0.15276,3646.9,3646.6,0.001]
[1752984594026,2.74213434,3646.8,3646.6,0.001]
[1752984594439,2.741915,3647.1,3646.7,0.7922]
[1752984594440,0.55,3647.1,3646.7,0.7922]
[1752984595015,2.74180873,3647.3,3646.7,1.267]
[1752984595327,2.74184694,3647.2,3646.7,1.267]
[1752984595516,2.74184694,3647.2,3646.6,0.001]
[1752984595517,0.1368,3646.7,3646.6,0.001]
[1752984596832,0.1368,3646.7,3646.6,0.4758]
[1752984597032,2.87900528,3646.7,3646.6,0.001]
[1752984597234,0.1368,3646.7,3646.6,0.001]
[1752984597565,0.13527136,3646.7,3646.6,0.4758]
[1752984598417,0.13527136,3646.7,3646.6,3.21808048]
[1752984598836,0.13527136,3646.7,3646.6,0.4758]
[1752984599646,0.13527136,3646.7,3646.6,3.21808048]
[1752984599857,0.13527136,3646.7,3646.6,4.01028048]
[1752984600670,0.8087,3647.8,3647.3,2.74168148]
[1752984600870,0.4276,3648.3,3647.3,2.74168148]
[1752984600871,4.06398217,3648.2,3647.4,3.21647862]
[1752984601073,1.06398217,3648.2,3647.4,0.4748]
[1752984601275,0.8087,3649.2,3647.7,3.0]
[1752984601579,0.65320803,3649.1,3647.8,5.23376]
[1752984601758,0.8087,3649.2,3648.2,2.74107072]
[1752984601759,0.1368,3648.4,3648.2,2.74107072]
[1752984602287,0.1368,3648.4,3648.3,2.74100265]
[1752984602455,0.25554632,3649.0,3648.3,2.74100265]
[1752984602658,0.1368,3648.8,3648.6,2.74073069]
[1752984602984,0.1368,3648.8,3648.7,2.74070216]
[1752984603186,0.1368,3648.8,3648.6,2.74076461]
[1752984603502,0.1368,3648.8,3648.6,2.74076602]
[1752984603845,0.1368,3648.8,3648.5,4.333]
[1752984604248,0.1368,3648.8,3648.6,2.74076027]
[1752984604781,0.1368,3648.8,3648.7,2.74070216]
[1752984605476,0.1368,3649.0,3648.8,2.74061865]
[1752984605678,0.1368,3649.0,3648.8,0.4748]
[1752984605978,0.1368,3649.0,3648.7,0.98135532]
[1752984605979,0.1368,3649.0,3648.9,3.21535194]
[1752984606208,1.06424632,3649.8,3649.1,2.74033675]
[1752984606411,0.1368,3649.3,3649.1,2.74033675]
[1752984606709,0.1368,3649.3,3649.0,2.74045688]
[1752984607768,0.1368,3649.3,3649.1,2.74038727]
[1752984608066,0.1368,3649.3,3649.2,2.74032664]
[1752984608269,3.8136,3650.2,3649.5,2.74008872]
[1752984608611,0.1368,3649.2,3648.5,3.53435161]
[1752984608768,0.1368,3648.9,3648.6,3.21552207]
[1752984609101,0.1368,3648.9,3648.5,7.86333567]
[1752984609601,0.1368,3648.5,3648.2,4.328]
[1752984610612,0.1368,3648.5,3648.1,4.00943417]
[1752984610904,0.1368,3648.5,3648.1,8.33743417]
[1752984611219,0.1368,3648.5,3648.1,1.2683]
[1752984611381,0.1368,3648.5,3647.8,4.18551804]
[1752984611382,0.1368,3648.3,3647.8,4.18551804]
[1752984611585,1.81376347,3648.2,3647.2,0.8326]
[1752984611913,0.1368,3647.5,3647.2,0.8326]
[1752984612579,0.1368,3647.5,3647.2,1.3074]
[1752984612783,0.1368,3647.5,3647.3,0.4748]
[1752984613007,0.8019,3648.2,3647.3,0.4748]
[1752984613299,0.1368,3647.8,3647.4,0.41860259]
[1752984613623,0.1368,3647.8,3647.4,4.328]
[1752984613787,0.1368,3647.8,3647.3,2.74170139]
[1752984613975,0.1368,3647.8,3647.4,0.4748]
[1752984615012,0.1368,3647.6,3647.3,4.329]
[1752984615221,0.1368,3647.6,3647.0,2.8787278]
[1752984615222,0.1710691,3647.6,3647.0,0.1368]
[1752984615402,0.1368,3647.4,3647.1,4.329]
[1752984616089,2.87853325,3647.4,3647.0,4.329]
[1752984616278,0.1368,3647.4,3646.8,0.9694]
[1752984616480,2.87849812,3647.4,3646.8,0.9694]
[1752984616774,0.1368,3647.4,3646.8,0.9694]
[1752984617117,2.74177236,3647.3,3646.8,0.9694]
[1752984617518,2.74177236,3647.3,3646.8,0.1368]
[1752984617726,0.1368,3647.4,3646.8,0.1368]
[1752984617727,0.03427286,3647.2,3646.8,0.1368]
[1752984617884,0.1368,3647.0,3646.6,4.8048]
[1752984618429,0.1368,3647.0,3646.6,4.33]
[1752984618628,0.1368,3647.0,3646.6,0.001]
[1752984618832,0.1368,3647.0,3646.7,0.4748]
[1752984619037,0.1368,3647.0,3646.8,0.4748]
[1752984619206,0.1368,3647.0,3646.8,3.21687213]
[1752984619411,0.1368,3647.0,3646.9,0.4748]
[1752984619610,0.1368,3647.0,3646.6,0.001]
[1752984619799,0.1368,3647.0,3646.6,4.33]
[1752984619995,3.54402024,3646.9,3646.6,0.001]
[1752984620230,0.1368,3646.8,3646.6,0.001]
[1752984621022,0.1368,3646.8,3646.6,0.4632]
[1752984621437,0.1368,3646.8,3646.7,0.4622]
[1752984621928,0.1368,3646.8,3646.6,0.001]
[1752984622704,0.1368,3646.8,3646.7,0.4622]
[1752984623306,0.1368,3647.1,3646.7,3.20438033]
[1752984623505,0.1368,3647.1,3646.8,0.4622]
[1752984623812,3.5303751,3647.9,3647.0,0.8171]
[1752984624011,0.1368,3647.4,3647.2,2.74182726]
[1752984624316,0.1368,3647.4,3647.3,3.20395417]
[1752984624928,0.1368,3647.4,3647.3,0.4622]
[1752984625253,0.1368,3647.8,3647.4,2.74165347]
[1752984626932,0.1368,3647.8,3647.3,3.20394916]
[1752984627130,0.44615091,3647.8,3647.0,0.8171]
[1752984627305,0.1368,3647.5,3647.2,2.74182681]
[1752984627708,0.1368,3647.5,3647.2,3.20402681]
[1752984628038,2.74254251,3649.0,3646.6,0.001]
[1752984628039,0.7646,3647.1,3646.6,0.001]
[1752984628239,2.87885125,3647.0,3646.6,0.001]
[1752984628439,0.1368,3646.9,3646.6,0.001]
[1752984628745,2.8788625,3646.9,3646.6,0.001]
[1752984628941,0.1368,3646.9,3646.6,0.001]
[1752984629242,3.33070461,3646.9,3646.6,0.001]
[1752984629443,0.5886,3646.9,3646.6,0.001]
[1752984629746,2.74217938,3646.8,3646.6,0.001]
[1752984630611,0.4518,3646.9,3646.6,0.001]
[1752984630612,3.19386954,3646.9,3646.6,0.001]
[1752984631005,2.74214626,3646.8,3646.6,0.001]
[1752984631730,1.0018,3646.7,3646.6,0.001]
[1752984631927,4.56480528,3646.7,3646.6,0.001]
[1752984632143,2.8790932,3646.6,3645.9,4.23]
[1752984632383,0.1368,3646.2,3645.8,2.74286591]
[1752984632556,0.1368,3646.2,3645.7,5.6036]
[1752984632712,0.1368,3646.2,3645.7,8.34655026]
[1752984633043,0.1368,3646.2,3645.7,3.0]
[1752984633213,0.5886,3646.2,3645.7,3.0]
[1752984633414,0.4518,3646.1,3645.7,3.0]
[1752984633725,0.1368,3646.0,3645.5,4.329]
[1752984634047,0.1368,3646.0,3645.6,2.74302865]
[1752984634345,1.30688414,3646.0,3645.3,8.29869716]
[1752984634642,0.1368,3645.7,3645.3,8.19874973]
[1752984634854,0.1368,3645.7,3645.3,5.4555]
[1752984635155,0.1368,3645.7,3645.5,2.74310279]
[1752984635330,1.44846841,3646.0,3644.7,0.7643]
[1752984635510,0.1368,3645.4,3645.3,2.74321905]
[1752984635910,0.1368,3645.4,3645.3,2.74325844]
[1752984636158,0.8208,3646.0,3645.7,2.74293388]
[1752984636348,0.1368,3645.7,3645.4,0.7643]
[1752984636553,0.1368,3646.3,3646.2,2.74252455]
[1752984636717,0.1368,3646.3,3646.2,3.20472455]
[1752984637322,0.8208,3647.2,3646.6,2.74225841]
[1752984637535,2.74376758,3647.3,3646.4,0.4622]
[1752984637536,0.1368,3646.8,3646.4,0.4622]
[1752984637736,0.1368,3646.8,3646.7,2.74220528]
[1752984638254,0.1368,3646.8,3646.6,2.74226753]
[1752984638425,0.1368,3646.8,3646.4,2.74242536]
[1752984638625,0.1368,3646.8,3646.4,3.20462536]
[1752984638819,0.1368,3646.8,3646.6,2.74222524]
[1752984639014,0.1368,3646.8,3646.2,0.7643]
[1752984639341,0.1368,3646.4,3646.3,2.7425061]
[1752984639538,0.55,3646.8,3646.3,2.7425061]
[1752984639841,0.8208,3646.9,3646.0,7.7912]
[1752984639842,0.1368,3646.7,3646.6,2.74222656]
[1752984640371,0.1368,3646.7,3646.6,3.20442656]
[1752984640537,0.1368,3646.9,3646.7,2.74220528]
[1752984640914,0.1368,3646.9,3646.6,2.74226098]
[1752984641346,0.1368,3646.9,3646.7,2.74218906]
[1752984641558,0.1368,3646.9,3646.8,2.74213008]
[1752984641751,0.1368,3646.9,3646.8,3.20433008]
[1752984642545,0.002,3647.3,3646.9,2.74198273]
[1752984642718,0.1368,3647.2,3646.9,2.74198273]
[1752984643464,0.002,3647.3,3646.8,2.74212761]
[1752984643623,0.1368,3646.9,3646.8,2.74212761]
[1752984644520,0.1368,3646.9,3646.8,3.20432761]
[1752984644861,0.1368,3647.2,3646.8,0.4622]
[1752984645061,0.1368,3647.2,3647.1,2.74190452]
[1752984646642,0.002,3647.3,3647.2,2.74182934]
[1752984646845,0.002,3647.3,3646.8,0.4622]
[1752984647146,0.1368,3647.2,3646.9,4.329]
[1752984647351,0.1368,3647.2,3647.0,2.7419797]
[1752984648149,0.1368,3647.2,3647.1,2.74190452]
[1752984650075,0.1368,3647.2,3647.1,3.19350452]
[1752984650261,0.1368,3647.2,3647.1,2.74190452]
[1752984650571,0.1368,3647.2,3643.6,4.6547538]
[1752984650572,0.55,3646.8,3645.6,1.2547]
[1752984650772,3.29231223,3646.6,3645.9,4.328]
[1752984650939,0.1368,3646.1,3645.9,4.328]
[1752984651776,2.87948589,3646.1,3645.9,4.328]
[1752984651941,2.87947068,3646.1,3645.6,1.3915]
[1752984652135,2.74273176,3646.0,3645.9,4.329]
[1752984653161,2.74273176,3646.0,3645.6,0.1368]
[1752984653473,2.87947998,3646.1,3645.9,4.329]
[1752984653689,2.87947998,3646.1,3645.6,0.1368]
[1752984653860,0.1368,3646.1,3646.0,4.329]
[1752984654062,0.1368,3646.1,3646.0,1.2547]
[1752984654263,0.1368,3646.1,3646.0,4.329]
[1752984654578,0.1368,3646.1,3646.0,4.328]
[1752984655778,0.1368,3646.1,3646.0,4.7796]
[1752984655971,0.1368,3646.1,3646.0,4.328]
[1752984656183,0.1368,3646.1,3645.6,0.9399]
[1752984656375,0.1368,3646.1,3646.0,4.329]
[1752984656543,2.87945653,3646.1,3646.0,4.329]
[1752984657076,0.1368,3646.1,3646.0,4.329]
[1752984657578,0.1368,3646.1,3645.6,0.1368]
[1752984657974,0.1368,3646.1,3645.9,4.329]
[1752984659087,0.1368,3646.1,3646.0,4.329]
[1752984659380,0.1368,3646.1,3645.6,2.87983249]
[1752984659572,0.1368,3646.1,3645.9,4.7806]
[1752984659966,0.1368,3646.1,3645.9,4.329]
[1752984660160,0.1368,3646.1,3645.9,4.7806]
[1752984660779,0.1368,3646.1,3646.0,0.4516]
[1752984661600,0.1368,3646.1,3645.7,2.74293641]
[1752984661601,0.1368,3646.1,3645.7,0.4516]
[1752984661983,0.1368,3646.1,3645.9,4.328]
[1752984662350,2.74280698,3645.9,3645.6,0.1368]
[1752984662583,2.74280698,3645.9,3644.4,4.71215446]
[1752984662584,3.5318022,3644.8,3643.9,3.19587628]
[1752984662886,0.1368,3644.4,3644.1,4.328]
[1752984663081,0.55,3645.7,3644.2,1.277]
[1752984663320,0.1368,3644.8,3644.7,2.74371004]
[1752984663620,0.1368,3644.8,3644.7,0.4516]
[1752984663831,0.1368,3644.8,3644.7,7.02071004]
[1752984664127,0.1368,3644.8,3644.7,11.34871004]
[1752984664338,0.1368,3645.8,3645.4,0.8254]
[1752984664492,0.1368,3645.8,3645.5,4.328]
[1752984664690,0.1368,3646.0,3645.6,3.19463269]
[1752984664895,0.1368,3646.0,3645.7,0.4516]
[1752984665221,0.55,3645.8,3644.0,0.8254]
[1752984665423,1.00197589,3645.8,3645.0,2.74346973]
[1752984665618,1.00197589,3645.8,3644.8,7.07262856]
[1752984665802,1.00197589,3645.8,3645.0,2.74346092]
[1752984665997,1.2271,3645.9,3644.9,2.74354752]
[1752984666200,3.96990841,3645.9,3645.0,2.74341646]
[1752984666524,2.74297773,3645.7,3645.1,4.329]
[1752984666726,3.18197773,3645.7,3645.2,4.329]
[1752984666931,2.74289679,3645.8,3645.2,4.329]
[1752984667105,0.439,3645.6,3645.2,4.329]
[1752984667438,0.439,3645.6,3644.9,2.74353717]
[1752984667624,0.439,3645.6,3645.0,4.329]
[1752984667828,3.96998219,3645.9,3645.1,2.74334814]
[1752984668028,3.96992612,3645.9,3645.1,2.74334814]
[1752984668227,0.55,3645.6,3644.0,2.74421678]
[1752984668426,0.7677,3645.7,3644.5,4.33]
[1752984668427,2.7434649,3645.1,3644.5,4.33]
[1752984668762,2.74344041,3645.1,3644.5,4.33]
[1752984668968,2.74339843,3645.2,3644.5,4.33]
[1752984669170,2.7434441,3645.1,3644.6,4.335]
[1752984669679,3.1824441,3645.1,3644.6,4.335]
[1752984669828,0.55,3645.4,3644.5,0.001]
[1752984670033,3.51131506,3644.9,3644.5,0.001]
[1752984670372,1.43707322,3644.9,3644.5,0.001]
[1752984670530,1.2067,3644.9,3644.5,0.001]
[1752984670736,3.9502664,3644.9,3644.5,0.001]
[1752984670937,1.2067,3644.9,3644.5,0.001]
[1752984671271,0.439,3644.8,3644.5,0.001]
[1752984671444,0.7677,3644.9,3644.5,0.001]
[1752984672143,0.7729,3645.2,3644.7,2.74365681]
[1752984672343,0.7729,3645.2,3644.7,3.19525681]
[1752984672849,1.2119,3645.7,3645.0,2.74346906]
[1752984673046,1.2119,3645.7,3645.1,2.74338527]
[1752984673346,0.7729,3645.7,3644.5,1.34695707]
[1752984673547,0.0342879,3645.6,3644.6,4.74509369]
[1752984673755,0.4732879,3645.6,3644.7,2.74371004]
[1752984673961,0.4732879,3645.6,3644.9,2.74349771]
[1752984674179,2.77733101,3645.6,3645.0,4.337]
[1752984674381,3.18212895,3645.5,3644.6,3.15287072]
[1752984674589,0.439,3645.5,3644.9,2.74355849]
[1752984674883,0.7729,3645.7,3644.8,2.74363476]
[1752984675078,0.1368,3645.1,3645.0,2.74348422]
[1752984675285,0.1368,3645.1,3645.0,3.19508422]
[1752984676151,2.74310915,3645.5,3644.6,0.40909369]
[1752984676482,0.1368,3645.1,3644.9,2.74349287]
[1752984676682,0.1368,3645.1,3644.8,2.74362121]
[1752984677687,0.1368,3645.1,3644.9,4.334]
[1752984678494,0.1368,3645.1,3645.0,4.332]
[1752984678657,0.1368,3645.1,3645.0,2.74348422]
[1752984678853,0.1368,3645.1,3645.0,4.33]
[1752984679995,0.1368,3645.6,3645.1,0.7519]
[1752984680377,0.1368,3645.6,3645.3,2.74325145]
[1752984680569,0.1368,3645.6,3645.4,4.335]
[1752984680765,0.1368,3645.6,3645.3,2.74325145]
[1752984681095,0.1368,3645.6,3645.4,4.334]
[1752984681348,0.002,3645.9,3645.5,2.74310794]
[1752984681622,0.1388,3645.9,3645.7,2.74288611]
[1752984682207,0.1388,3645.9,3645.8,7.07888222]
[1752984682918,0.002,3645.9,3645.8,8.38018222]
[1752984684989,0.55,3645.6,3644.6,0.001]
[1752984685202,0.8061,3645.5,3644.7,4.347]
[1752984685522,0.8061,3645.5,3644.7,7.09071004]
[1752984685818,0.8061,3645.5,3644.7,4.347]
[1752984686022,2.74295903,3645.7,3645.0,2.74342632]
[1752984686222,0.8061,3645.8,3645.1,5.1631]
[1752984686383,0.002,3645.9,3645.1,0.8141]
[1752984686591,2.7430985,3645.6,3645.2,4.349]
[1752984686922,0.8061,3645.8,3645.3,4.35]
[1752984687238,0.002,3645.9,3645.4,0.4716]
[1752984687555,0.002,3645.9,3645.0,0.4716]
[1752984687703,0.002,3645.9,3645.1,4.351]
[1752984687904,0.002,3645.9,3645.8,2.74288222]
[1752984688633,0.002,3645.9,3645.8,7.56548222]
[1752984691730,0.002,3645.9,3645.8,8.33508222]
[1752984692103,0.002,3645.9,3645.8,3.51248222]
[1752984692303,0.002,3645.9,3645.8,8.33108222]
[1752984693352,0.002,3645.9,3645.8,7.85848222]
[1752984693628,0.002,3645.9,3645.8,7.86048222]
[1752984694013,6.602,3645.9,3645.8,8.33208222]
[1752984694627,6.602,3645.9,3645.8,8.33108222]
[1752984695094,6.602,3645.9,3645.8,8.46788222]
[1752984695295,6.602,3645.9,3645.8,9.58897234]
[1752984696353,6.602,3645.9,3645.8,12.58897234]
[1752984697019,6.602,3645.9,3645.8,9.58497234]
[1752984697390,6.602,3645.9,3645.8,4.12088222]
[1752984697596,6.602,3645.9,3645.8,7.99228222]
[1752984697892,6.602,3645.9,3645.8,7.22268222]
[1752984698609,6.602,3645.9,3645.8,2.74288222]
[1752984699007,6.602,3645.9,3645.8,7.08388222]
[1752984699342,6.602,3645.9,3645.8,2.74288222]
[1752984699492,6.602,3645.9,3645.8,7.08388222]
[1752984700026,6.602,3645.9,3645.8,7.08288222]
[1752984700208,7.72358,3645.9,3645.5,2.74308975]
[1752984700405,7.86038,3645.9,3645.6,4.34]
[1752984700738,0.4477,3645.8,3645.6,4.34]
[1752984701602,0.4477,3645.8,3645.7,4.337]
[1752984702136,0.8126,3645.7,3645.1,2.74336821]
[1752984702294,0.8126,3645.7,3645.2,7.08030875]
[1752984702499,0.5845,3645.6,3645.2,7.08030875]
[1752984703035,0.5845,3645.6,3645.3,4.335]
[1752984703423,1.29303143,3645.6,3645.4,4.335]
[1752984703622,0.4477,3645.5,3645.1,2.74340249]
[1752984703935,0.4477,3645.5,3645.2,4.335]
[1752984704135,0.4477,3645.5,3645.1,2.74340437]
[1752984704301,0.4477,3645.5,3645.3,4.335]